bitfinex/quotes_SOLUSD_20251002
["timestamp","ask_amount","ask_price","bid_price","bid_amount"]
[1759389424830,0.28432314,225.04,225.0,4.44426045]
[1759389425014,30.28432314,225.04,225.02,20.8]
[1759389425622,30.28432314,225.04,224.99,13.34668001]
[1759389425623,112.12432314,225.03,224.99,4.44463471]
[1759389425820,0.28432314,225.02,224.97,4.44487075]
[1759389426136,0.28432314,225.0,224.99,20.8]
[1759389426830,0.28432314,225.0,224.97,4.44487075]
[1759389427018,31.01802343,224.99,224.97,4.44487075]
[1759389427210,31.01802343,224.99,224.97,25.24487075]
[1759389427405,31.04,225.0,224.96,4.4452347]
[1759389427736,31.04,225.0,224.99,20.8]
[1759389428830,31.32432314,225.01,225.0,25.24444444]
[1759389429037,31.04,225.01,225.0,25.24444444]
[1759389433346,0.28432314,225.03,225.0,25.24444444]
[1759389433628,31.04,225.02,225.0,25.24444444]
[1759389433829,31.32432314,225.02,225.01,4.44424692]
[1759389434038,61.32432314,225.02,225.01,25.24424692]
[1759389434433,61.32432314,225.02,225.01,20.8]
[1759389434636,0.28432314,225.01,225.0,20.8]
[1759389434833,3.60048381,225.01,224.95,4.44543231]
[1759389435037,1.77352731,225.01,224.95,17.79389389]
[1759389435450,0.28432314,225.01,224.98,20.8]
[1759389435824,0.28432314,225.01,224.98,25.24481209]
[1759389436152,30.28432314,225.01,224.98,25.24481209]
[1759389436944,0.28432314,224.99,224.97,20.8]
[1759389437124,31.32432314,224.98,224.97,20.8]
[1759389437320,32.81352731,224.98,224.97,20.8]
[1759389437727,0.28432314,224.97,224.96,20.8]
[1759389437928,0.28432314,224.97,224.96,25.2452347]
[1759389439125,0.28432314,224.97,224.96,20.8]
[1759389439556,0.28432314,224.97,224.96,25.2452347]
[1759389441230,30.28432314,224.97,224.96,20.8]
[1759389441435,30.28432314,224.97,224.96,25.2452347]
[1759389443469,30.28432314,224.97,224.96,20.8]
[1759389443675,31.77352731,224.97,224.84,22.43743144]
[1759389443851,35.84660198,224.96,224.86,46.60501022]
[1759389444171,32.52920417,224.96,224.91,13.35143194]
[1759389444463,32.52920417,224.96,224.94,20.8]
[1759389444767,0.28432314,224.95,224.94,20.8]
[1759389444950,30.28432314,224.95,224.94,20.8]
[1759389445283,30.28432314,224.95,224.93,20.8]
[1759389445437,31.32432314,224.94,224.93,21.45]
[1759389445863,61.32432314,224.94,224.93,21.45]
[1759389446750,61.32432314,224.94,224.93,20.8]
[1759389447537,61.32432314,224.94,224.93,21.45]
[1759389449286,61.32432314,224.94,224.93,20.8]
[1759389449769,0.28432314,224.93,224.91,5.09616297]
[1759389449957,31.04,224.92,224.91,5.09616297]
[1759389454786,31.04,224.92,224.91,0.65]
[1759389454973,31.04,224.92,224.85,0.85]
[1759389454974,11.16079835,224.91,224.85,0.85]
[1759389455174,0.28432314,224.89,224.85,4.6473832]
[1759389455391,31.32432314,224.88,224.87,20.8]
[1759389455566,31.32432314,224.88,224.86,0.65]
[1759389455893,31.32432314,224.88,224.87,20.8]
[1759389456781,0.28432314,224.87,224.86,0.65]
[1759389457088,0.28432314,224.87,224.86,21.45]
[1759389457598,0.28432314,224.87,224.86,25.89721159]
[1759389458675,31.32432314,224.87,224.86,25.89721159]
[1759389460597,11.16079835,224.86,224.85,0.2]
[1759389460897,45.99521078,224.86,224.85,0.2]
[1759389463194,50.44242237,224.86,224.85,0.2]
[1759389463880,52.22404052,224.86,224.85,0.2]
[1759389467303,65.32940696,224.86,224.85,0.2]
[1759389470009,90.62647521,224.8,224.79,0.2]
[1759389470311,43.69000252,224.8,224.79,0.2]
[1759389470897,11.16079835,224.8,224.79,0.2]
[1759389471098,10.87647521,224.84,224.79,4.64859646]
[1759389471300,80.8,224.83,224.79,15.77008762]
[1759389471491,31.04,224.85,224.79,15.77008762]
[1759389471706,61.04,224.86,224.82,20.8]
[1759389472117,61.04,224.86,224.85,20.8]
[1759389472314,31.04,224.86,224.85,21.45]
[1759389473431,31.04,224.86,224.85,25.89740938]
[1759389474108,81.56920417,224.92,224.85,37.01593284]
[1759389474438,0.28432314,224.9,224.86,0.67]
[1759389474614,0.28432314,224.9,224.89,20.8]
[1759389474933,0.28432314,224.9,224.89,21.47]
[1759389476833,0.28432314,224.9,224.89,25.91661834]
[1759389477007,80.08,224.92,224.89,37.0331642]
[1759389477213,80.08,224.92,224.9,0.67]
[1759389477515,31.04,224.95,224.9,0.67]
[1759389477713,0.28432314,224.94,224.92,20.8]
[1759389478118,0.28432314,224.94,224.92,21.47]
[1759389478511,0.28432314,224.94,224.93,20.8]
[1759389482240,12.65000252,224.94,224.89,21.47]
[1759389482425,11.16079835,224.92,224.89,34.82321478]
[1759389482843,11.16079835,224.92,224.89,21.47]
[1759389483057,31.04,224.91,224.88,13.35440361]
[1759389483216,12.65000252,224.9,224.88,13.35440361]
[1759389483551,31.04,224.89,224.86,4.44721159]
[1759389483750,31.04,224.89,224.86,5.11721159]
[1759389485147,0.28432314,224.88,224.86,5.11721159]
[1759389485945,31.04,224.87,224.84,34.15618725]
[1759389486252,91.24079835,224.86,224.85,20.8]
[1759389486649,92.73000252,224.86,224.85,20.8]
[1759389486851,12.65000252,224.86,224.82,14.02797136]
[1759389487070,0.28432314,224.84,224.82,25.91794586]
[1759389487575,31.32432314,224.83,224.82,20.8]
[1759389487775,31.32432314,224.83,224.8,0.67]
[1759389487937,0.28432314,224.82,224.8,0.67]
[1759389488138,80.8,224.81,224.8,0.67]
[1759389489861,80.8,224.81,224.8,5.11839857]
[1759389490070,111.84,224.81,224.8,4.44839857]
[1759389490638,111.84,224.81,224.79,21.67]
[1759389490846,111.84,224.81,224.79,21.0]
[1759389491046,111.84,224.81,224.79,21.67]
[1759389491258,111.84,224.81,224.79,26.11850208]
[1759389491754,80.8,224.81,224.8,0.67]
[1759389491955,80.8,224.81,224.8,21.47]
[1759389492759,80.8,224.81,224.8,25.91839857]
[1759389492960,31.04,224.89,224.8,50.39736637]
[1759389493144,0.28432314,224.88,224.84,20.8]
[1759389493347,0.28432314,224.88,224.85,0.67]
[1759389493546,0.28432314,224.88,224.86,0.67]
[1759389493961,0.28432314,224.88,224.87,5.11701383]
[1759389494172,31.04,224.89,224.87,5.11701383]
[1759389494685,0.28432314,224.88,224.87,5.11701383]
[1759389496086,31.04,224.89,224.87,5.11701383]
[1759389497656,31.04,224.89,224.87,18.47260648]
[1759389498089,53.94364799,224.88,224.87,17.80260648]
[1759389498264,31.04,224.93,224.9,20.8]
[1759389498583,31.04,224.93,224.91,0.67]
[1759389499080,0.28432314,224.93,224.91,14.02321478]
[1759389499262,61.32432314,224.93,224.91,14.02321478]
[1759389499461,31.32432314,224.93,224.91,14.02321478]
[1759389499662,31.32432314,224.93,224.92,0.67]
[1759389500080,31.32432314,224.93,224.92,5.11602525]
[1759389500966,31.32432314,224.93,224.92,4.44602525]
[1759389502393,31.04,224.93,224.92,4.44602525]
[1759389502563,31.32432314,224.93,224.92,4.44602525]
[1759389506566,31.32432314,224.93,224.91,4.44622293]
[1759389506767,31.32432314,224.93,224.92,20.8]
[1759389506967,31.04,224.93,224.92,21.51]
[1759389507398,31.04,224.93,224.92,20.8]
[1759389508609,31.04,224.94,224.93,4.44582759]
[1759389508898,31.32432314,224.94,224.93,4.44582759]
[1759389515109,11.16079835,224.93,224.76,11.07647521]
[1759389515316,11.16079835,224.91,224.86,0.71]
[1759389515526,31.04,224.9,224.86,0.71]
[1759389515727,112.53,224.9,224.86,0.71]
[1759389516329,112.12432314,224.9,224.89,20.8]
[1759389517041,112.81432314,224.9,224.89,20.8]
[1759389517230,112.12432314,224.9,224.89,20.8]
[1759389517740,111.84,224.9,224.89,21.51]
[1759389518722,111.84,224.9,224.89,25.24661834]
[1759389519323,80.8,224.9,224.89,25.95661834]
[1759389520721,80.8,224.97,224.89,68.1131642]
[1759389520918,31.04,224.96,224.9,0.71]
[1759389521721,31.04,224.96,224.94,20.8]
[1759389522019,111.84,224.97,224.94,20.8]
[1759389522226,112.53,224.97,224.94,20.8]
[1759389522523,0.69,224.96,224.94,20.8]
[1759389523111,0.69,224.96,224.95,4.44543231]
[1759389525917,111.84,224.97,224.95,4.44543231]
[1759389526144,112.12432314,224.97,224.96,20.8]
[1759389526343,112.81432314,224.97,224.96,20.8]
[1759389526529,32.01432314,224.97,224.96,20.8]
[1759389527341,32.01432314,224.97,224.96,25.2452347]
[1759389528353,32.01432314,224.97,224.93,20.8]
[1759389528562,0.69,224.96,224.93,25.24581562]
[1759389528720,0.69,224.95,224.93,4.44581562]
[1759389528920,0.69,224.94,224.93,4.44581562]
[1759389533055,31.02,224.95,224.93,4.44581562]
[1759389533263,31.71,224.95,224.92,20.8]
[1759389533631,31.71,224.95,224.92,25.24602286]
[1759389534120,0.28432314,224.94,224.92,25.24602286]
[1759389534323,0.95432314,224.94,224.92,25.24602286]
[1759389536059,0.28432314,224.94,224.92,25.24602286]
[1759389536556,0.28432314,224.94,224.93,20.8]
[1759389536760,34.62498376,224.94,224.93,20.8]
[1759389539051,34.62498376,224.94,224.92,4.44592073]
[1759389539245,31.97432314,224.94,224.92,4.44592073]
[1759389539445,31.97432314,224.94,224.92,25.24592073]
[1759389539632,31.97432314,224.94,224.93,20.8]
[1759389539824,35.29752701,224.94,224.93,20.8]
[1759389540030,34.62752701,224.94,224.93,20.8]
[1759389541762,0.28432314,224.93,224.89,4.44643683]
[1759389541961,11.16079835,224.91,224.87,4.44681699]
[1759389542136,0.28432314,224.89,224.87,4.44681699]
[1759389542455,31.02,224.88,224.87,25.24681699]
[1759389542641,31.02,224.88,224.87,4.44681699]
[1759389543358,80.8,224.87,224.86,25.24720485]
[1759389548943,80.8,224.87,224.86,25.90720485]
[1759389549356,31.02,224.91,224.86,37.02523384]
[1759389549657,111.82,224.92,224.87,0.66]
[1759389549859,3.32330274,224.91,224.87,0.66]
[1759389550045,111.82,224.92,224.87,0.66]
[1759389550239,3.32316871,224.91,224.88,36.36385626]
[1759389550454,3.323237,224.9,224.89,0.66]
[1759389550845,111.82,224.92,224.89,0.66]
[1759389551046,3.3232232,224.91,224.9,0.66]
[1759389553061,3.3232232,224.91,224.9,5.10642063]
[1759389553365,3.9932232,224.91,224.89,25.24660456]
[1759389553553,35.01274568,224.9,224.89,25.24660456]
[1759389553940,31.69,224.9,224.89,25.24660456]
[1759389554176,35.01266267,224.9,224.89,25.24660456]
[1759389554341,35.01266267,224.9,224.89,20.8]
[1759389555067,35.01258373,224.9,224.89,20.8]
[1759389556445,35.01258373,224.9,224.89,25.24661834]
[1759389558181,46.17338208,224.9,224.89,20.8]
[1759389558342,0.28432314,224.88,224.87,20.8]
[1759389558548,31.30432314,224.88,224.87,20.8]
[1759389559966,31.30432314,224.88,224.87,25.24701383]
[1759389561064,0.28432314,224.88,224.87,25.24701383]
[1759389561266,31.30432314,224.88,224.87,25.24701383]
[1759389562070,0.28432314,224.88,224.87,25.24701383]
[1759389562276,31.30432314,224.88,224.87,25.24701383]
[1759389563978,35.30216965,224.88,224.87,20.8]
[1759389564571,36.79263197,224.88,224.86,20.8]
[1759389564883,3.99784651,224.87,224.84,4.44741888]
[1759389565054,31.02,224.86,224.84,25.24741888]
[1759389566156,31.7,224.86,224.84,25.24741888]
[1759389566549,31.02,224.86,224.84,25.24741888]
[1759389566758,31.7,224.86,224.84,25.24741888]
[1759389566963,31.98432314,224.86,224.85,20.8]
[1759389567177,35.30018587,224.86,224.85,20.8]
[1759389568570,35.30018587,224.86,224.84,20.8]
[1759389568756,31.98432314,224.86,224.85,20.8]
[1759389568962,35.29951588,224.86,224.84,20.8]
[1759389569162,31.98432314,224.86,224.84,20.8]
[1759389570064,31.98432314,224.86,224.85,20.8]
[1759389570265,31.98432314,224.86,224.84,4.44753464]
[1759389570450,31.98432314,224.86,224.85,20.8]
[1759389570655,35.2982719,224.86,224.85,20.8]
[1759389571054,31.98432314,224.86,224.85,20.8]
[1759389571262,35.29904136,224.86,224.85,20.8]
[1759389572377,0.14216157,224.84,224.81,4.44807374]
[1759389572580,0.14216157,224.84,224.82,20.8]
[1759389572581,31.98432314,224.83,224.82,20.8]
[1759389572770,112.78432314,224.83,224.82,20.8]
[1759389573983,112.78432314,224.83,224.8,25.24832186]
[1759389574481,112.78432314,224.83,224.8,25.92832186]
[1759389574680,83.25478546,224.82,224.79,0.2]
[1759389574863,32.51046232,224.81,224.79,0.2]
[1759389575058,91.96079835,224.8,224.79,21.0]
[1759389575272,92.64079835,224.8,224.79,21.0]
[1759389577680,92.64079835,224.8,224.79,0.2]
[1759389579663,94.13126067,224.8,224.79,0.2]
[1759389580064,13.33126067,224.8,224.79,0.2]
[1759389583388,17.77965924,224.8,224.79,0.2]
[1759389585796,54.39980997,224.8,224.79,0.2]
[1759389586501,24.39980997,224.8,224.79,0.2]
[1759389587274,91.27647521,224.77,224.76,0.2]
[1759389587484,43.40693753,224.77,224.76,0.2]
[1759389589395,44.08693753,224.77,224.76,0.2]
[1759389589814,43.40693753,224.77,224.76,0.2]
[1759389591304,44.08693753,224.77,224.76,0.2]
[1759389591598,10.87647521,224.74,224.7,0.88]
[1759389591775,10.87647521,224.74,224.71,0.88]
[1759389591776,111.64,224.73,224.71,0.88]
[1759389592274,113.13046232,224.73,224.71,0.2]
[1759389593493,11.16079835,224.72,224.71,0.2]
[1759389594786,12.65126067,224.72,224.71,0.2]
[1759389596587,13.37126067,224.72,224.71,0.2]
[1759389598213,17.82124287,224.72,224.71,0.2]
[1759389598396,13.37126067,224.72,224.71,0.2]
[1759389598583,43.37126067,224.72,224.71,0.2]
[1759389600306,47.82124287,224.72,224.71,0.2]
[1759389600607,46.33078055,224.72,224.71,0.2]
[1759389600911,17.82124287,224.72,224.71,0.2]
[1759389601814,80.4,224.7,224.68,0.2]
[1759389601985,43.69126067,224.69,224.68,0.2]
[1759389602305,44.41126067,224.69,224.68,0.2]
[1759389604233,74.41126067,224.69,224.68,0.2]
[1759389605209,42.65126067,224.69,224.68,0.2]
[1759389605415,73.69126067,224.69,224.68,0.2]
[1759389605594,43.69126067,224.69,224.68,0.2]
[1759389606606,44.41126067,224.69,224.68,0.2]
[1759389609498,48.86183701,224.69,224.68,0.2]
[1759389609699,78.86183701,224.69,224.68,0.2]
[1759389610797,73.69126067,224.69,224.68,0.2]
[1759389611007,74.41126067,224.69,224.68,0.2]
[1759389612322,79.70586645,224.69,224.68,0.2]
[1759389612700,91.56079835,224.67,224.66,21.0]
[1759389613004,122.60079835,224.67,224.66,21.0]
[1759389613306,44.53529011,224.67,224.66,0.2]
[1759389613631,48.55188506,224.67,224.66,0.2]
[1759389613804,78.55188506,224.67,224.66,0.2]
[1759389614125,53.00285759,224.67,224.66,0.2]
[1759389616135,56.2999377,224.67,224.66,0.2]
[1759389618234,86.2999377,224.67,224.66,0.2]
[1759389618616,95.827844,224.65,224.64,0.2]
[1759389618829,129.4866589,224.65,224.64,0.2]
[1759389619131,160.2066589,224.65,224.64,0.2]
[1759389621529,43.21096697,224.65,224.64,0.91]
[1759389621705,72.20079835,224.65,224.64,0.91]
[1759389622124,74.53529011,224.65,224.64,0.2]
[1759389622326,74.53529011,224.65,224.64,0.88]
[1759389622534,44.53529011,224.65,224.64,0.2]
[1759389623424,44.53529011,224.65,224.64,0.88]
[1759389623812,44.53529011,224.65,224.64,0.2]
[1759389624111,74.53529011,224.65,224.64,0.2]
[1759389624808,74.53529011,224.65,224.64,0.86]
[1759389626323,74.53529011,224.65,224.64,0.2]
[1759389627823,74.53529011,224.65,224.64,0.86]
[1759389628323,75.24529011,224.65,224.64,0.2]
[1759389629437,81.15416654,224.65,224.64,0.2]
[1759389630724,81.86416654,224.65,224.64,0.2]
[1759389631046,86.31553533,224.65,224.64,0.2]
[1759389632228,81.86416654,224.65,224.64,0.2]
[1759389632423,86.31553533,224.65,224.64,0.2]
[1759389634445,86.31870499,224.65,224.64,0.2]
[1759389635249,58.65319675,224.65,224.64,0.2]
[1759389636245,56.31870499,224.65,224.64,0.2]
[1759389637133,86.31870499,224.65,224.64,0.2]
[1759389637746,88.65319675,224.65,224.64,0.2]
[1759389638848,86.31870499,224.65,224.64,0.2]
[1759389639424,50.1173362,224.65,224.64,0.86]
[1759389639627,81.1573362,224.65,224.64,0.86]
[1759389640350,50.87301306,224.65,224.64,0.86]
[1759389640576,51.1573362,224.65,224.64,0.2]
[1759389640775,56.31870499,224.65,224.64,0.2]
[1759389640993,58.65319675,224.65,224.64,0.2]
[1759389641273,88.65319675,224.65,224.64,0.2]
[1759389645276,90.31647521,224.59,224.54,20.8]
[1759389645575,47.84480408,224.59,224.54,20.8]
[1759389645779,47.84480408,224.59,224.57,4.45292112]
[1759389647356,34.63383711,224.59,224.58,5.21275625]
[1759389649266,34.63383711,224.59,224.58,0.76]
[1759389650391,34.63383711,224.59,224.58,0.1]
[1759389651091,47.84480408,224.59,224.58,0.1]
[1759389651806,45.51031232,224.59,224.58,0.1]
[1759389651962,47.84480408,224.59,224.58,0.1]
[1759389654495,5.92832887,224.59,224.58,0.1]
[1759389654680,36.96832887,224.59,224.58,0.1]
[1759389656481,3.30951397,224.59,224.58,4.55275625]
[1759389656690,31.04,224.59,224.58,5.21275625]
[1759389656877,31.04,224.59,224.58,0.76]
[1759389657208,34.35768662,224.59,224.58,0.1]
[1759389658698,34.35768662,224.59,224.58,0.76]
[1759389659182,34.35768662,224.59,224.58,5.21275625]
[1759389659978,3.31768662,224.59,224.58,5.21275625]
[1759389660179,34.35768662,224.59,224.58,5.21275625]
[1759389660900,34.35768662,224.59,224.58,0.76]
[1759389661203,34.35768662,224.59,224.58,0.1]
[1759389661778,34.35768662,224.59,224.58,4.55275625]
[1759389664486,34.35768662,224.59,224.58,0.1]
[1759389664804,34.64200976,224.59,224.58,0.1]
[1759389665206,37.63650152,224.59,224.58,0.1]
[1759389665517,40.95684537,224.59,224.58,0.1]
[1759389666018,51.83332058,224.59,224.58,0.1]
[1759389666997,56.28587857,224.59,224.58,0.1]
[1759389667200,56.28587857,224.59,224.54,20.8]
[1759389667201,11.16079835,224.58,224.54,20.8]
[1759389667402,0.28432314,224.56,224.54,20.8]
[1759389667709,37.67803047,224.55,224.54,20.8]
[1759389668097,38.33803047,224.55,224.52,4.45392988]
[1759389668405,6.63803047,224.54,224.53,20.8]
[1759389669322,9.63252223,224.54,224.51,13.37583877]
[1759389669497,2.6188149,224.54,224.53,20.8]
[1759389669680,40.30315958,224.54,224.53,20.8]
[1759389669998,40.96315958,224.54,224.53,20.8]
[1759389670184,0.28432314,224.53,224.5,13.37583877]
[1759389670382,40.01883644,224.52,224.49,20.8]
[1759389670583,6.64434468,224.51,224.49,34.17762814]
[1759389670789,34.36217234,224.5,224.49,20.8]
[1759389670991,34.36217234,224.5,224.49,4.45453315]
[1759389672800,37.68565938,224.5,224.49,4.45453315]
[1759389672996,80.8,224.49,224.47,0.66]
[1759389673306,3.32217234,224.48,224.47,17.83316299]
[1759389673689,3.32217234,224.48,224.47,18.49316299]
[1759389674802,6.64782513,224.48,224.47,17.83316299]
[1759389675219,34.36217234,224.48,224.47,17.83316299]
[1759389675922,34.36217234,224.48,224.47,13.3782247]
[1759389676123,38.34758954,224.48,224.45,20.9]
[1759389676300,7.59191268,224.47,224.46,17.83448855]
[1759389676818,7.59191268,224.47,224.46,20.8]
[1759389677191,7.59191268,224.47,224.45,38.73594305]
[1759389677418,38.34758954,224.46,224.45,38.73594305]
[1759389677918,38.34758954,224.46,224.45,20.9]
[1759389678518,40.12791427,224.46,224.45,20.9]
[1759389679247,38.63191268,224.46,224.45,0.1]
[1759389681357,37.97191268,224.46,224.45,4.55533526]
[1759389681653,37.96726965,224.46,224.45,4.55533526]
[1759389683018,38.67726965,224.46,224.45,0.1]
[1759389684246,51.04974645,224.46,224.45,0.1]
[1759389685652,49.55374486,224.46,224.45,0.1]
[1759389685865,51.04974645,224.46,224.45,0.1]
[1759389686228,51.06974645,224.46,224.45,0.1]
[1759389686661,55.52488322,224.46,224.45,0.1]
[1759389686831,85.52488322,224.46,224.45,0.1]
[1759389687164,81.56974645,224.46,224.45,0.1]
[1759389687464,86.02488322,224.46,224.45,0.1]
[1759389688269,11.16079835,224.45,224.41,0.1]
[1759389688451,12.65679994,224.42,224.41,0.1]
[1759389688750,48.86374486,224.42,224.41,0.1]
[1759389688953,51.02974645,224.42,224.41,0.1]
[1759389689337,81.02974645,224.42,224.41,0.1]
[1759389690330,85.48567729,224.42,224.41,0.1]
[1759389692552,55.48567729,224.42,224.41,0.1]
[1759389693266,0.28432314,224.4,224.35,0.1]
[1759389693468,12.65679994,224.36,224.35,0.1]
[1759389693676,51.02974645,224.36,224.35,0.1]
[1759389694171,19.96974645,224.36,224.35,0.1]
[1759389694380,51.02974645,224.36,224.35,0.1]
[1759389695752,81.02974645,224.36,224.35,0.1]
[1759389696143,49.96974645,224.36,224.35,0.1]
[1759389696469,81.02974645,224.36,224.35,0.1]
[1759389697142,85.48686893,224.36,224.35,0.1]
[1759389699547,0.28432314,224.28,224.27,20.8]
[1759389699876,36.12761672,224.28,224.27,25.25891113]
[1759389700378,36.12761672,224.28,224.09,31.06]
[1759389700379,6.57229179,224.28,224.19,4.46050225]
[1759389700535,31.1,224.29,224.19,15.61175788]
[1759389700747,31.1,224.3,224.29,20.8]
[1759389700948,61.22,224.3,224.29,21.46]
[1759389701367,61.22,224.3,224.29,0.66]
[1759389701559,61.22,224.3,224.29,25.91851353]
[1759389701765,31.22,224.3,224.29,25.91851353]
[1759389702582,34.50506785,224.3,224.29,25.91851353]
[1759389703173,34.50492134,224.3,224.29,25.91851353]
[1759389703363,34.78924448,224.3,224.29,25.91851353]
[1759389703955,0.28432314,224.29,224.27,0.66]
[1759389704155,0.28432314,224.29,224.28,21.46]
[1759389704468,34.78772669,224.29,224.28,21.46]
[1759389704675,0.28432314,224.27,224.19,5.12045002]
[1759389704975,0.28432314,224.21,224.19,5.12045002]
[1759389705175,35.08772669,224.2,224.19,4.46045002]
[1759389705478,35.08772669,224.2,224.18,0.1]
[1759389705658,3.28340355,224.19,224.18,0.76]
[1759389705980,3.28340355,224.19,224.18,5.22070122]
[1759389706474,31.52,224.2,224.18,5.22070122]
[1759389706659,31.52,224.2,224.19,0.66]
[1759389707267,31.54,224.2,224.19,0.66]
[1759389708148,31.54,224.2,224.19,5.12050225]
[1759389708479,34.82023696,224.2,224.19,5.12050225]
[1759389708677,34.82023696,224.2,224.19,4.46050225]
[1759389709356,34.82023696,224.2,224.19,5.12050225]
[1759389709557,3.28023696,224.2,224.19,5.12050225]
[1759389716581,31.5,224.23,224.19,29.66610992]
[1759389716897,3.28432061,224.22,224.21,20.8]
[1759389717100,3.28432061,224.22,224.21,25.26010436]
[1759389718398,3.28432061,224.22,224.21,25.97010436]
[1759389718796,3.28432061,224.22,224.21,25.26010436]
[1759389719178,6.60218456,224.27,224.21,36.41036527]
[1759389719376,38.05579515,224.26,224.21,37.12036527]
[1759389719688,3.28791868,224.25,224.22,11.58647521]
[1759389719889,3.28791868,224.24,224.22,0.71]
[1759389720106,4.45737387,224.35,224.23,0.71]
[1759389720318,0.67,224.31,224.25,20.8]
[1759389720492,38.05616196,224.3,224.26,4.45910996]
[1759389720680,38.05616196,224.3,224.26,25.25910996]
[1759389720681,7.24616196,224.29,224.26,25.25910996]
[1759389720881,3.95808098,224.28,224.26,25.25910996]
[1759389721096,3.28808098,224.27,224.26,25.25910996]
[1759389721618,0.28432314,224.26,224.22,20.8]
[1759389721921,7.2489124,224.25,224.23,20.8]
[1759389722089,3.28808098,224.24,224.23,20.8]
[1759389722280,38.73074947,224.24,224.23,20.8]
[1759389723894,38.73074947,224.24,224.23,25.25970655]
[1759389724092,38.06074947,224.24,224.23,25.25970655]
[1759389725614,6.58074947,224.24,224.23,25.25970655]
[1759389725813,6.58418361,224.24,224.23,25.25970655]
[1759389727101,31.48,224.27,224.23,50.51093327]
[1759389727305,6.59615438,224.26,224.24,0.71]
[1759389727489,6.59615438,224.25,224.23,49.80093327]
[1759389727688,6.62795821,224.32,224.23,36.40897292]
[1759389728003,6.62795821,224.32,224.27,20.8]
[1759389728209,22.19,224.36,224.27,52.3]
[1759389728414,22.19,224.36,224.28,0.71]
[1759389728613,40.2879578,224.5,224.28,0.71]
[1759389728614,4.48800477,224.52,224.51,276.98546494]
[1759389728794,82.36718749,224.52,224.51,49.10742943]
[1759389729000,50.86718749,224.52,224.51,49.10742943]
[1759389729194,69.00000795,224.52,224.51,16.81544786]
[1759389729393,10.87647521,224.51,224.37,24.45690911]
[1759389729701,10.87647521,224.41,224.37,24.45690911]
[1759389730218,10.87647521,224.41,224.39,20.0]
[1759389730726,0.28432314,224.4,224.39,20.0]
[1759389730928,0.67,224.47,224.39,24.45652658]
[1759389731137,31.52,224.48,224.44,20.0]
[1759389731429,30.0,224.45,224.44,20.0]
[1759389731603,30.0,224.45,224.42,20.0]
[1759389731805,30.0,224.45,224.38,20.0]
[1759389731806,1.78032473,224.43,224.38,20.0]
[1759389732227,1.78032473,224.43,224.38,33.38419326]
[1759389732899,1.78032473,224.42,224.38,20.0]
[1759389733099,1.78032473,224.42,224.37,31.52]
[1759389733100,10.87647521,224.4,224.36,40.8]
[1759389733300,10.87647521,224.4,224.37,13.38538761]
[1759389733530,13.32679994,224.39,224.36,20.0]
[1759389733733,11.16079835,224.37,224.36,20.0]
[1759389734025,12.65679994,224.37,224.36,20.0]
[1759389734332,0.28432314,224.36,224.32,10.87647521]
[1759389734625,0.28432314,224.36,224.32,20.0]
[1759389735229,10.87647521,224.35,224.32,20.0]
[1759389736429,10.87647521,224.35,224.32,24.45788541]
[1759389736617,31.52,224.44,224.38,20.0]
[1759389736929,30.0,224.39,224.38,20.0]
[1759389737423,30.0,224.39,224.38,24.45672519]
[1759389737619,4.45508441,224.47,224.38,24.45672519]
[1759389737826,31.56,224.46,224.42,20.0]
[1759389738119,41.01863678,224.43,224.42,20.0]
[1759389738711,11.16079835,224.43,224.42,20.0]
[1759389739029,10.87647521,224.42,224.4,24.45628809]
[1759389739417,0.28432314,224.43,224.4,20.0]
[1759389739624,3.30813908,224.42,224.4,20.0]
[1759389739825,0.28432314,224.43,224.4,24.45630682]
[1759389740015,3.30746278,224.42,224.4,24.45630682]